Cogmind - Beta 16.1 @@@ ROGUE MODE // 2026.04.02 @ 12:10:50 Player: beans Result: Destroyed by G-47 Trooper with Particle Gun Performance ------------- Evolutions (2) 1000 Regions Visited (7) 1400 Robots Destroyed (47) 235 Value Destroyed (1139) 1139 Prototype IDs (24) 480 Alien Tech Used (0) 0 Bonus (660) 660 TOTAL SCORE: 4914 Bonus ------- Pacifist 200 High Alert Combat Kills 160 Aligned with FarCom 300 Cogmind --------- Core Integrity 0/550 Matter 119/300 Energy 115/150 System Corruption 0% Temperature Cool (25) Movement Core (400) Ox7 Location -8/Materials Parts ------- > --- POWER (1) -------- Micro Nuclear Core > --- PROPULSION (4) --- (None) > --- UTILITY (2) ------ (None) > --- WEAPON (4) ------- YOLO Cannon > --- INVENTORY (5) ---- Weapon Cycler Ion Cannon Peak State ------------ > --- POWER ------------ Micro Nuclear Core > --- PROPULSION ------- Carbon-fiber Leg > --- UTILITY ---------- Weapon Cycler Weapon Cycler > --- WEAPON ----------- YOLO Cannon Light Assault Rifle > --- INVENTORY -------- Ion Cannon [Rating: 36] Favorites ----------- Power Micro Nuclear Core Power Core Micro Nuclear Core Propulsion Carbon-fiber Leg Leg Carbon-fiber Leg Utility Weapon Cycler Device Weapon Cycler Weapon Light Assault Rifle Energy Cannon YOLO Cannon Ballistic Gun Light Assault Rifle Build | -11 -10 -10 -9 -9 -9 -8 -8 ------- Run | Yrd Mat Min Mat Min Exi Min Mat Slots Evolved 4 | . . . 2 . . . 2 Power . | . . . . . . . . Propulsion 2 | . . . . . . . 2 Utility . | . . . . . . . . Weapon 2 | . . . 2 . . . . Parts Attached 10 | . . . 2 . . . 8 Power 1 | . . . . . . . 1 Engine . | . . . . . . . . Core 1 | . . . . . . . 1 Reactor . | . . . . . . . . Propulsion 1 | . . . . . . . 1 Treads . | . . . . . . . . Leg 1 | . . . . . . . 1 Wheel . | . . . . . . . . Hover . | . . . . . . . . Flight . | . . . . . . . . Utility 2 | . . . . . . . 2 Device 2 | . . . . . . . 2 Storage . | . . . . . . . . Processor . | . . . . . . . . Hackware . | . . . . . . . . Protection . | . . . . . . . . Artifact . | . . . . . . . . Weapon 6 | . . . 2 . . . 4 Energy Gun . | . . . . . . . . Energy Cannon 1 | . . . . . . . 1 Ballistic Gun 5 | . . . 2 . . . 3 Ballistic Cannon . | . . . . . . . . Launcher . | . . . . . . . . Special Weapon . | . . . . . . . . Impact Weapon . | . . . . . . . . Slashing Weapon . | . . . . . . . . Piercing Weapon . | . . . . . . . . Special Melee Weapon . | . . . . . . . . Unidentified Prototypes 1 | . . . . . . . 1 Parts Lost 4 | . . . 1 . . . 3 Power . | . . . . . . . . Propulsion . | . . . . . . . . Utility 1 | . . . . . . . 1 Weapon 3 | . . . 1 . . . 2 Highest Loss Streak 2 | . . . 1 . . . 2 To Critical Strikes . | . . . . . . . . Average Backups . | . . . . . . 1 1 Power . | . . . . . . . . Propulsion . | . . . . . . . . Utility . | . . . . . . . . Weapon . | . . . . . . 1 1 Tool/Special . | . . . . . . . . Unused Backups 1 | . . . . . . . 1 Power . | . . . . . . . . Propulsion . | . . . . . . . . Utility . | . . . . . . . . Weapon 1 | . . . . . . . 1 Tool/Special . | . . . . . . . . Average Slot Usage (%) 19 | . . . 5 11 11 11 32 Core 4 | . . . . . . . 8 Leg 1 | . . . . . . . 2 Device 6 | . . . . . . . 12 Energy Cannon 2 | . . . . . . . 4 Ballistic Gun 5 | . . . 5 11 11 11 5 Peak Build Rating 36 | . . . 2 1 3 3 36 Average Rating 12 | . . . . 1 1 3 22 On Entrance 1 | . . . . 1 1 3 3 Avg Prop Armor Cover (%) . | . . . . . . . . Naked Turns 365 | . 245 20 64 . . . 36 Heaviest Build 26 | . . . 3 1 1 1 26 Greatest Support 15 | 3 3 3 3 3 3 3 15 Greatest Overweight (x) 8 | . . . . . . . 8 Average Overweight (x) . | . . . . . . . 2 Largest Inventory Capacity 5 | 5 5 5 5 5 5 5 5 Average Capacity 5 | 5 5 5 5 5 5 5 5 Most Carried 5 | . . . 1 . 2 2 5 Average Carried 1 | . . . . . . 2 2 Final Capacity 5 | 5 5 5 5 5 5 5 5 Final Carried 2 | . . . . . 2 2 2 Class Distribution -------------------- 100% | Mutant Dominant Class ---------------- Mutant | -10/Materials Mutant | -10/Mines Mutant | -9/Materials Mutant | -9/Mines Mutant | -9/Exiles Mutant | -8/Mines Mutant | -8/Materials Resources | -11 -10 -10 -9 -9 -9 -8 -8 ----------- Run | Yrd Mat Min Mat Min Exi Min Mat Matter Collected 326 | . . . 111 . . . 215 Remotely . | . . . . . . . . Salvage Created 1044 | . . . 85 . . . 959 Parts 71 | . . . 12 . . . 59 Haulers Intercepted . | . . . . . . . . Recyclers Shooed 1 | . . . 1 . . . . Parts Field Recycled . | . . . . . . . . Retrieved Matter . | . . . . . . . . Parts Self-Destructed . | . . . . . . . . Prevented . | . . . . . . . . Parts Restored . | . . . . . . . . Kills | -11 -10 -10 -9 -9 -9 -8 -8 ------- Run | Yrd Mat Min Mat Min Exi Min Mat Combat Hostiles Destroyed 33 | . . . 5 . . . 28 Guns 8 | . . . 5 . . . 3 Cannons 9 | . . . . . . . 9 AOE 14 | . . . . . . . 14 Classes Destroyed 9 | . . . 2 . . . 7 Worker 5 | . . . . . . . 5 Builder 1 | . . . . . . . 1 Tunneler 1 | . . . . . . . 1 Recycler 3 | . . . . . . . 3 Watcher 4 | . . . 1 . . . 3 Swarmer 17 | . . . 5 . . . 12 Grunt 9 | . . . . . . . 9 Brawler 2 | . . . . . . . 2 Sentry 5 | . . . . . . . 5 Best Kill Streak 8 | . . . 5 . . . 8 Combat Bots Only 5 | . . . 5 . . . 5 Max Kills in Single Turn 3 | . . . 1 . . . 3 Gunslinging . | . . . . . . . . Exploded 2 | . . . . . . . 2 Melee . | . . . . . . . . Uniques/NPCs Destroyed . | . . . . . . . . Combat | -11 -10 -10 -9 -9 -9 -8 -8 -------- Run | Yrd Mat Min Mat Min Exi Min Mat Hostile Shots Fired 194 | . 7 . 41 . . . 146 Missed 62 | . 2 . 10 . . . 50 Hits 132 | . 5 . 31 . . . 96 Projectile 132 | . 5 . 31 . . . 96 Damage Taken 1456 | . 56 . 299 . . . 1101 Core 752 | . 56 . 146 . . . 550 Absorbed by Shields . | . . . . . . . . Core Remaining (%) 80 | 100 . 77 . . . 63 . Volleys Fired 91 | . . . 20 8 . . 63 Largest 2 | . . . 1 1 . . 2 Hottest 120 | . . . 23 20 . . 120 Shots Fired 109 | . . . 20 8 . . 81 Gun 71 | . . . 20 8 . . 43 Cannon 38 | . . . . . . . 38 Launcher . | . . . . . . . . Special . | . . . . . . . . Kinetic 71 | . . . 20 8 . . 43 Thermal 38 | . . . . . . . 38 Explosive . | . . . . . . . . Electromagnetic . | . . . . . . . . Robot Hit Streak 6 | . . . 2 1 . . 6 Robot Miss Streak 5 | . . . 3 3 . . 5 Penetration Max . | . . . . . . . . Secondary Targets 1 | . . . . . . . 1 Max Gunslinging Chain 1 | . . . . . . . 1 Shots Hit Robots 44 | . . . 9 2 . . 33 Core Hits 42 | . . . 6 1 . . 35 Critical Kills 2 | . . . . . . . 2 Critical Parts Destroyed . | . . . . . . . . Critical Strikes 2 | . . . . . . . 2 Meltdown 2 | . . . . . . . 2 Melee Attacks . | . . . . . . . . Impact . | . . . . . . . . Slashing . | . . . . . . . . Piercing . | . . . . . . . . Sneak Attacks . | . . . . . . . . Combat Hostiles . | . . . . . . . . Follow-up Attacks . | . . . . . . . . Damage Inflicted 5024 | . . . 245 12 . . 4767 Guns 296 | . . . 131 12 . . 153 Cannons 1873 | . . . . . . . 1873 Explosions 2855 | . . . 114 . . . 2741 Melee . | . . . . . . . . Ramming . | . . . . . . . . Kinetic 296 | . . . 131 12 . . 153 Thermal 4614 | . . . . . . . 4614 Explosive 114 | . . . 114 . . . . Electromagnetic . | . . . . . . . . Impact . | . . . . . . . . Slashing . | . . . . . . . . Piercing . | . . . . . . . . Highest Corruption 1 | . 1 1 . . . . . Average Corruption 1 | . 1 1 . . . . . Corruption Purged . | . . . . . . . . Corruption Blocked . | . . . . . . . . Effects 3 | . 3 . . . . . . Message Errors 2 | . 2 . . . . . . Matter Fused 1 | . 1 . . . . . . Overload Shots . | . . . . . . . . Overflow Damage 563 | . . . . . . . 563 Projectiles 390 | . . . . . . . 390 Explosions 173 | . . . . . . . 173 Melee . | . . . . . . . . Knockbacks . | . . . . . . . . Impact . | . . . . . . . . Kinetic . | . . . . . . . . Secondary . | . . . . . . . . Self-Inflicted Damage 36 | . . . . . . . 36 Shots 1 | . . . . . . . 1 Rammed . | . . . . . . . . Targets Rammed . | . . . . . . . . Kicked . | . . . . . . . . Crushed . | . . . . . . . . Highest Temperature 378 | . . . . . . . 378 Average Temperature 66 | . . . . . . . 66 Received Heat Transfer 363 | . 30 . . . . . 333 Effects 2 | . . . . . . . 2 Shutdowns 1 | . . . . . . . 1 Matter Decay 1 | . . . . . . . 1 Siege Activations . | . . . . . . . . Martial Activations . | . . . . . . . . Shielding Activations . | . . . . . . . . Robots Disrupted . | . . . . . . . . Combat Hostiles . | . . . . . . . . Robots Corrupted . | . . . . . . . . Combat Hostiles . | . . . . . . . . Parts Fried . | . . . . . . . . Impact Corruptions . | . . . . . . . . Robots Melted 2 | . . . . . . . 2 Combat Hostiles 2 | . . . . . . . 2 Parts Melted 7 | . . . . . . . 7 Heat Transferred 4560 | . . . . . . . 4560 Parts Sabotaged . | . . . . . . . . Parts Stolen . | . . . . . . . . Parts Stripped . | . . . . . . . . Power Chain Reactions . | . . . . . . . . Alert | -11 -10 -10 -9 -9 -9 -8 -8 ------- Run | Yrd Mat Min Mat Min Exi Min Mat Maximum Alert Level 3 | . . . . . . . 3 Low Security (%) 58 | 100 100 100 100 100 . 100 25 Level 1 7 | . . . . . . . 13 Level 2 19 | . . . . . . . 34 Level 3 14 | . . . . . . . 25 Level 4 . | . . . . . . . . Level 5 . | . . . . . . . . High Security . | . . . . . . . . Max Security . | . . . . . . . . Peak Influence 865 | . 3 . 176 60 . . 865 Initial 60 | . . . . 60 . . . Average 268 | . . . 66 21 . . 460 Influence Increases 1555 | . 3 . 244 60 . . 1248 Destroy 0b10 Robot/C 660 | . . . 100 . . . 560 Destroy 0b10 Robot/NC 70 | . . . 5 . . . 65 Destroy Leader 148 | . . . 22 . . . 126 Successful Hack 38 | . 3 . 26 . . . 9 Select Force Hacks 50 | . . . . . . . 50 Disable Machine 90 | . . . 45 . . . 45 Destroy Structure 379 | . . . 46 . . . 333 Lose Combat Pursuer 120 | . . . . 60 . . 60 Influence Decreases 690 | . 3 . 88 196 20 . 383 Entered New Map 116 | . . . . 96 20 . . Time Decay 534 | . 3 . 78 100 . . 353 Lost Part 40 | . . . 10 . . . 30 Squads Dispatched 6 | . 1 . . . . . 5 Investigation 2 | . 1 . . . . . 1 Extermination . | . . . . . . . . Reinforcement 3 | . . . . . . . 3 Assault 1 | . . . . . . . 1 Garrison . | . . . . . . . . Intercept . | . . . . . . . . Searches Triggered . | . . . . . . . . Construction Impeded 1 | . . . . . . . 1 Haulers Reinforced . | . . . . . . . . Active Scanning Responses . | . . . . . . . . Cargo Convoy Interrupts . | . . . . . . . . Stealth | -11 -10 -10 -9 -9 -9 -8 -8 --------- Run | Yrd Mat Min Mat Min Exi Min Mat Distress Signals 7 | . . . 1 . . . 6 Communications Jammed . | . . . . . . . . Distress Signals . | . . . . . . . . Times Spotted 62 | . 4 . 11 4 . . 43 Peak Tracking Total 7 | . 4 . 7 2 . . 6 Tactical Retreats 5 | . . . . 2 . . 3 Traps | -11 -10 -10 -9 -9 -9 -8 -8 ------- Run | Yrd Mat Min Mat Min Exi Min Mat Traps Triggered 1 | . . . . . . . 1 Indirectly . | . . . . . . . . Trap Hack Attempts . | . . . . . . . . Triggered . | . . . . . . . . Disarmed . | . . . . . . . . Reprogrammed . | . . . . . . . . Reused . | . . . . . . . . Traps Extracted . | . . . . . . . . Installed . | . . . . . . . . Triggered . | . . . . . . . . Objects Rigged 5 | . . . 5 . . . . Exploded 1 | . . . 1 . . . . Machines | -11 -10 -10 -9 -9 -9 -8 -8 ---------- Run | Yrd Mat Min Mat Min Exi Min Mat Machines Disabled 6 | . . . 3 . . . 3 Max in Single Turn 2 | . . . 2 . . . 1 Machines Repaired . | . . . . . . . . Machines Dismantled . | . . . . . . . . Machines Sabotaged 1 | . . . . . . . 1 Overloaded Fab Kills . | . . . . . . . . Hacking | -11 -10 -10 -9 -9 -9 -8 -8 --------- Run | Yrd Mat Min Mat Min Exi Min Mat Machines Accessed 8 | . 1 . 4 . 1 . 2 Terminals 7 | . 1 . 4 . . . 2 Fabricators . | . . . . . . . . Repair Stations . | . . . . . . . . Recycling Units . | . . . . . . . . Scanalyzers . | . . . . . . . . Garrison Access . | . . . . . . . . Total Hacks 24 | . 6 . 13 . 1 . 4 Successful 14 | . 2 . 8 . 1 . 3 Failed 10 | . 4 . 5 . . . 1 Catastrophic . | . . . . . . . . Database Lockouts . | . . . . . . . . Manual 20 | . 3 . 13 . 1 . 3 Terminals 23 | . 6 . 13 . . . 4 Fabricators . | . . . . . . . . Repair Stations . | . . . . . . . . Recycling Units . | . . . . . . . . Scanalyzers . | . . . . . . . . Garrison Access . | . . . . . . . . Terminal Hacks 5 | . 2 . 1 . 1 . 1 Record 1 | . . . 1 . . . . Emergency Access Points 1 | . 1 . . . . . . Maintenance Status 1 | . 1 . . . . . . Registered Prototypes 1 | . . . . . . . 1 Proto ID Catalog 1 | . . . . . 1 . . Fabricator Hacks . | . . . . . . . . Repair Station Hacks . | . . . . . . . . Recycling Unit Hacks . | . . . . . . . . Scanalyzer . | . . . . . . . . Garrison Access Hacks . | . . . . . . . . Unauthorized Hacks 9 | . . . 7 . . . 2 Terminals 9 | . . . 7 . . . 2 Assimilate 1 | . . . 1 . . . . Botnet 3 | . . . 2 . . . 1 Detonate 2 | . . . 2 . . . . Disrupt 1 | . . . 1 . . . . Operators 1 | . . . 1 . . . . Sabotage 1 | . . . . . . . 1 Fabricators . | . . . . . . . . Repair Stations . | . . . . . . . . Recycling Units . | . . . . . . . . Scanalyzers . | . . . . . . . . Garrison Access . | . . . . . . . . Data Cores Recovered . | . . . . . . . . Used . | . . . . . . . . Hacking Detections 6 | . 1 . 3 . . . 2 Full Trace Events 1 | . 1 . . . . . . Feedback Events 1 | . 1 . . . . . . Corruption 1 | . 1 . . . . . . Feedback Blocked . | . . . . . . . . Robot Schematics Acquired . | . . . . . . . . Robots Built . | . . . . . . . . Authchips . | . . . . . . . . Time . | . . . . . . . . Total Robot Build Rating . | . . . . . . . . Part Schematics Acquired . | . . . . . . . . Parts Built . | . . . . . . . . Authchips . | . . . . . . . . Time . | . . . . . . . . Total Part Build Rating . | . . . . . . . . Part Studies Acquired . | . . . . . . . . Parts Repaired . | . . . . . . . . Time . | . . . . . . . . Parts Recycled . | . . . . . . . . Recycled Matter . | . . . . . . . . Retrieved Matter . | . . . . . . . . Retrieved Components . | . . . . . . . . Parts Scanalyzed . | . . . . . . . . Part Schematics Acquired . | . . . . . . . . Parts Damaged . | . . . . . . . . Bothacking | -11 -10 -10 -9 -9 -9 -8 -8 ------------ Run | Yrd Mat Min Mat Min Exi Min Mat Used RIF Installer . | . . . . . . . . Robots Hacked . | . . . . . . . . Non-combat . | . . . . . . . . Combat . | . . . . . . . . Robot Hacks Applied . | . . . . . . . . Relay Couplers Released . | . . . . . . . . Fabnet Peak Effective % . | . . . . . . . . Robots Rewired . | . . . . . . . . Allies Hacked . | . . . . . . . . Hacks Repelled . | . . . . . . . . Allies | -11 -10 -10 -9 -9 -9 -8 -8 -------- Run | Yrd Mat Min Mat Min Exi Min Mat Total Allies . | . . . . . . . . Largest Group . | . . . . . . . . Highest-Rated Group . | . . . . . . . . Highest-Rated Ally . | . . . . . . . . Total Orders . | . . . . . . . . Ally Attacks . | . . . . . . . . Total Damage . | . . . . . . . . Kills . | . . . . . . . . Allies Corrupted . | . . . . . . . . Allies Melted . | . . . . . . . . Intel | -11 -10 -10 -9 -9 -9 -8 -8 ------- Run | Yrd Mat Min Mat Min Exi Min Mat Active Infowar (turns) . | . . . . . . . . Robot Analysis Total . | . . . . . . . . Derelict Logs Recovered 3 | . . 1 . 2 . . . Drone Launches . | . . . . . . . . Drone Recoveries . | . . . . . . . . Exploration | -11 -10 -10 -9 -9 -9 -8 -8 ------------- Run | Yrd Mat Min Mat Min Exi Min Mat Turns Passed 1836 | 9 245 20 183 245 110 58 966 Spaces Moved 1469 | 19 83 40 211 414 218 66 418 Core 1320 | 19 83 40 211 414 218 66 269 Treads . | . . . . . . . . Legs 149 | . . . . . . . 149 Wheels . | . . . . . . . . Hover . | . . . . . . . . Flight . | . . . . . . . . Fastest Speed 50 | 50 50 50 50 50 50 50 50 Average Speed 85 | 50 50 50 50 50 50 50 176 Slowest Speed 450 | 50 50 50 50 50 50 50 450 Overloaded Moves . | . . . . . . . . Propulsion Burnouts . | . . . . . . . . Robots Hopped . | . . . . . . . . Potential Cave-ins 7 | . . . . . . . 7 Cave-ins Triggered . | . . . . . . . . Exploration Rate (%) 32 | 3 11 20 22 60 61 24 59 Regions Visited 7 Branch Regions 4 Pre-discovered Areas 2 | . . . . 2 . . . Known Exits Taken . | . . . . . . . . Unknown Exits Taken 7 | 1 1 1 1 1 1 1 . Scrap Searched . | . . . . . . . . Spaces Dug 35 | . . . . . . . 35 Terrain Destroyed 454 | . . . 51 . . . 403 Melee . | . . . . . . . . Projectile 17 | . . . . . . . 17 AOE 437 | . . . 51 . . . 386 Terrain Rammed . | . . . . . . . . Walls Destroyed . | . . . . . . . . Machines Disabled . | . . . . . . . . Actions | -11 -10 -10 -9 -9 -9 -8 -8 --------- Run | Yrd Mat Min Mat Min Exi Min Mat Total 1925 | 18 285 39 269 445 218 90 561 Wait 324 | . 203 . 33 24 . 25 39 Move 1462 | 18 82 39 210 413 217 65 418 Hop . | . . . . . . . . Pick Up 12 | . . . 2 . 1 . 9 Fast Attach . | . . . . . . . . Attach 21 | . . . 3 . . . 18 Detach 11 | . . . 1 . . . 10 Swap . | . . . . . . . . Drop 4 | . . . . . . . 4 Fire 91 | . . . 20 8 . . 63 Melee . | . . . . . . . . Ram . | . . . . . . . . Kick . | . . . . . . . . Crush . | . . . . . . . . Escape Stasis . | . . . . . . . . Rewire . | . . . . . . . . Trap . | . . . . . . . . Miscellaneous . | . . . . . . . . Route ------- -11/Scrapyard -10/Materials -10/Mines -9/Materials -9/Mines (discovered 3 exits: *Mat x2 / *Exi) -9/Exiles -8/Mines -8/Materials (discovered 1 exit: [*Fac]) History --------- Turn | Location | Event 5 | -11/Scrapyard | Discovered new exit (range 12) 10 | -11/Scrapyard | Entered Materials 21 | -10/Materials | Discovered new exit (range 16) 255 | -10/Materials | Entered Mines 261 | -10/Mines | Learned Materials trap positions 271 | -10/Mines | Discovered new exit (range 9) 275 | -10/Mines | Entered Materials 275 | -9/Materials | Evolved 2 slots: Weapon x2 276 | -9/Materials | Loaded intel: 7 trap records 305 | -9/Materials | Build established: Mutant 399 | -9/Materials | Met 8R-AWN 447 | -9/Materials | Discovered new exit (range 16) 458 | -9/Materials | Entered Mines 498 | -9/Mines | Learned location of Zion (-6) 523 | -9/Mines | Discovered new exit (range 5) 558 | -9/Mines | Discovered new exit (range 13) 566 | -9/Mines | Assembled infested the area 571 | -9/Mines | Assisted by a Guerilla fighting off Assembled 701 | -9/Mines | Deemed a non-threat by the Exiles lab entrance 701 | -9/Mines | Discovered new exit (range 5) 703 | -9/Mines | Entered Exiles 715 | -9/Exiles | Welcomed by 8R-AWN 725 | -9/Exiles | Met EX-HEX 738 | -9/Exiles | Met EX-BIN 749 | -9/Exiles | Aligned with FarCom system 750 | -9/Exiles | Given EX-Vault access code 761 | -9/Exiles | Opened EX-Vault 766 | -9/Exiles | Found YOLO Cannon 776 | -9/Exiles | Warned to stay clear of 0b10 Research branches 790 | -9/Exiles | Met EX-DEC 808 | -9/Exiles | Discovered new exit (range 11) 813 | -9/Exiles | Left Exiles lab with YOLO Cannon 813 | -9/Exiles | Entered Mines 863 | -8/Mines | Discovered new exit (range 15) 871 | -8/Mines | Entered Materials 871 | -8/Materials | Evolved 2 slots: Propulsion x2 1223 | -8/Materials | Core integrity fell below 50% 1586 | -8/Materials | Core integrity fell below 20% 1671 | -8/Materials | First assault squad dispatched 1786 | -8/Materials | Discovered new exit (range 15) 1837 | -8/Materials | Destroyed by G-47 Trooper with Particle Gun Last Messages --------------- Destroyed Flight Unit. S-10 Pest destroyed. Destroyed Seismic Detector. S-10 Pest destroyed. K-01 Serf collects debris. K-01 Serf destroyed. S-10 Pest destroyed. ALERT: Unidentified disturbance in Zone 5O, assault force dispatched. K-01 Serf collects debris. EXIT=FOUND C-45 Heavy ARC bursts open, deploying its payload. G-50 Soldier unfolds itself. G-47 Trooper unfolds itself. B-36 Bruiser unfolds itself. M-28 Smith unfolds itself. Lgt. Angular Momentum Engine melted. G-50 Soldier destroyed. B-36 Bruiser destroyed. Map ----- +----------------------------------------------------+ | ??????????????????????????????????? | | ?????????????????????????????????#? | | ????????????????????????????????? ? | | ???????????????????????????????? "" | | ????????????????????????????????""S | | ??????????????????????????????? "" | | ??????????????????????????????? | | ?????????????????????????????? | | ???????????????????###########"""" | | ???????????????????# | | ???????????????????# = | | ???????????????????# % | | ???????????????????+ #### #"""" | | ???????????????????# #??# #?? | | ???????????????????# #??# #???? | | ??????????????????## ##?# #???? | | ????????########### #?# #???? | | ????????# #?# #???? | | #####???# T #?# #???? | | """""#### #?# #???? | | " # ####### [ #?# ##### | | " # #?????#######?# | | " # #?????????????# | | " # #?????????????# | | # #?????????????# ##### | | + @ #????????????## ##??? | | # #????????????# #??? | | # #????????????# = "#?? | | # #????????????# [% " #? | | # # #????????????# ! " #? | | # ;m #????????????# #? | | ########; l;????????????#" #? | | ??????? ; /;????????????# #? | | ??????? ;% %;????????????# " #? | | ??????? %= g;#?????[?????# "%* #? | | ?????? #???????????# "=" ##? | | ?????? < ;#???????????##" " ##?? | | ?????? ; ;#???????????### ###??? | | ?????" ; ;;;#???????????# #### | | ?????? ;;;;##????????#/## | | ????????; ???w?? T | | ??????????????????######## | | ?????????????????????????# #### | | ?????????????????????????###+###??? | | ??????????????????????????????????? | | ??????????????????????????????????? | | ??????????????????????????????????? | | ??????????????????????????????????? | | ??????????????????????????????????? | | ??????????????????????????????????? | +----------------------------------------------------+ Best States ------------- Heat Dissipation 31 Energy Generation 15 Energy Capacity 150 Matter Stores 149 Matter Capacity 300 Sight Range 16 Terrain Scan Density 10 Weapon Cycling 30 Evasion (%) 55 Item Schematics ----------------- None Robot Schematics ------------------ None Fabricated ------------ Nothing Repaired ---------- Nothing Studied --------- None Alien Tech Used ----------------- None Achievements -------------- None Challenges ------------ None Game ------ Seed ArmageddonSensorBank Manual? 0 Play Time 00:19:50 Cumulative 256.6 hours Start 2026.04.02 @ 11:54:50 End 2026.04.02 @ 12:10:50 Sessions 1 Manual Loads 0 Difficulty Rogue Special Mode None Game No. 689 Rogue 687 Adventurer 2 Explorer 0 Win Type - Total 0 Types 0/0/0/0/0/0/0/0/0/0 Lore% 67 Gallery% 62 Achievement% 43 Wizard Run 0 Options --------- Layout 1 ASCII 0 Keyboard 0 Movement Mouse Keybinds 0 Fullscreen 1 Font 24/Smallcaps Map View 50x35 Zoom Use 0% Tactical HUD 0 Map Filters NONE Filters NONE Steam 1 RUN: a7e058a3-31a7-4ad5-995e-7103a5a10a5f